bitfinex-derivatives/quotes_BTCF0:USTF0_20250101
["timestamp","ask_amount","ask_price","bid_price","bid_amount"]
[1735714361210,0.27305234,93760.0,93759.0,0.053441]
[1735714364506,0.15986689,93760.0,93759.0,0.053441]
[1735714377615,0.061441,93760.0,93759.0,0.053441]
[1735714383423,0.061441,93760.0,93759.0,0.03006116]
[1735714384213,0.15986294,93760.0,93759.0,0.03006116]
[1735714393424,0.15986294,93760.0,93759.0,0.0167522]
[1735714393632,0.15986294,93760.0,93755.0,0.3608]
[1735714394127,0.15886294,93760.0,93759.0,0.053441]
[1735714395083,0.10542194,93760.0,93759.0,0.053441]
[1735714395592,0.007,93760.0,93759.0,0.053441]
[1735714395914,0.4158233,93770.0,93755.0,0.3608]
[1735714396235,0.005,93760.0,93759.0,0.05344]
[1735714396439,0.006,93760.0,93759.0,0.05344]
[1735714396621,0.001,93760.0,93759.0,0.05344]
[1735714396821,0.006,93760.0,93759.0,0.05344]
[1735714397029,0.005,93760.0,93759.0,0.05344]
[1735714397229,0.053436,93767.0,93766.0,0.053436]
[1735714399625,0.055436,93767.0,93766.0,0.053436]
[1735714401522,0.15385378,93767.0,93766.0,0.053436]
[1735714403438,0.15385378,93767.0,93766.0,0.03050862]
[1735714406738,0.10041778,93767.0,93756.0,0.0329]
[1735714406947,0.053438,93764.0,93756.0,0.0329]
[1735714407945,0.053438,93764.0,93761.0,0.053439]
[1735714410042,0.054438,93764.0,93762.0,0.053439]
[1735714410942,0.053438,93763.0,93762.0,0.053439]
[1735714413139,0.055438,93763.0,93762.0,0.053439]
[1735714415746,0.053439,93761.0,93760.0,0.36136]
[1735714415930,0.053439,93761.0,93760.0,0.3608]
[1735714417037,0.054439,93761.0,93760.0,0.3608]
[1735714419843,0.054439,93761.0,93759.0,0.05344]
[1735714420091,0.054439,93761.0,93760.0,0.3608]
[1735714426052,0.054439,93761.0,93759.0,0.05344]
[1735714426328,0.054439,93761.0,93760.0,0.41424]
[1735714428952,0.053439,93761.0,93760.0,0.41424]
[1735714429152,0.054439,93761.0,93760.0,0.41424]
[1735714429546,0.054439,93761.0,93760.0,0.05344]
[1735714429856,0.054439,93761.0,93760.0,0.41424]
[1735714434562,0.054439,93761.0,93760.0,0.35407591]
[1735714434951,0.054439,93761.0,93760.0,0.40751591]
[1735714442760,0.15285742,93761.0,93760.0,0.40751591]
[1735714443474,0.15285742,93761.0,93760.0,0.05344]
[1735714443975,0.09941842,93761.0,93760.0,0.05344]
[1735714444756,0.001,93761.0,93760.0,0.05344]
[1735714456183,0.001,93761.0,93760.0,0.08574]
[1735714458091,0.001,93761.0,93760.0,0.80734]
[1735714460482,0.02693848,93771.0,93770.0,0.053434]
[1735714460683,0.053433,93773.0,93772.0,0.053433]
[1735714461085,0.08026734,93773.0,93772.0,0.053433]
[1735714461988,0.08026734,93773.0,93772.0,0.054433]
[1735714462397,0.02683434,93773.0,93772.0,0.054433]
[1735714462777,0.05343,93778.0,93772.0,0.054433]
[1735714462778,0.05343,93778.0,93777.0,0.05343]
[1735714463299,0.0812113,93778.0,93777.0,0.05343]
[1735714464906,0.0852113,93778.0,93777.0,0.05343]
[1735714465200,0.0852113,93778.0,93777.0,0.05443]
[1735714465798,0.18361571,93778.0,93777.0,0.05443]
[1735714479011,0.0852113,93778.0,93777.0,0.05443]
[1735714480813,0.0852113,93778.0,93777.0,0.03013039]
[1735714481111,0.18361648,93778.0,93777.0,0.03013039]
[1735714482915,0.17961648,93778.0,93777.0,0.03013039]
[1735714483113,0.18261648,93778.0,93777.0,0.03013039]
[1735714483311,0.18261648,93778.0,93777.0,0.02913039]
[1735714483512,0.18261648,93778.0,93777.0,0.03013039]
[1735714486320,0.17961648,93778.0,93777.0,0.03013039]
[1735714486613,0.18261648,93778.0,93777.0,0.03013039]
[1735714490914,0.18261648,93778.0,93777.0,0.001]
[1735714491915,0.18261648,93778.0,93777.0,0.05443]
[1735714492708,0.12918648,93778.0,93777.0,0.05443]
[1735714494815,0.10140518,93778.0,93777.0,0.41523]
[1735714495621,0.003,93778.0,93777.0,0.41523]
[1735714496518,0.053422,93791.0,93789.0,0.053423]
[1735714496720,0.053422,93791.0,93790.0,0.3608]
[1735714496915,0.16534381,93791.0,93790.0,0.3608]
[1735714498224,0.00102421,93791.0,93790.0,0.3608]
[1735714498823,0.00102421,93791.0,93790.0,0.3618]
[1735714499025,0.05444621,93791.0,93790.0,0.3618]
[1735714499411,0.05744621,93791.0,93790.0,0.3618]
[1735714508430,0.05744621,93791.0,93790.0,0.001]
[1735714518539,0.05744621,93791.0,93778.0,0.3608]
[1735714518540,0.00402421,93791.0,93778.0,0.3608]
[1735714518837,0.053426,93785.0,93782.0,0.053427]
[1735714520540,0.054426,93785.0,93782.0,0.053427]
[1735714521332,0.053426,93784.0,93782.0,0.053427]
[1735714522749,0.054426,93784.0,93782.0,0.053427]
[1735714522944,0.056426,93784.0,93782.0,0.053427]
[1735714525150,0.056426,93784.0,93778.0,0.36136]
[1735714525354,0.056426,93784.0,93783.0,0.053427]
[1735714526453,0.07724643,93784.0,93783.0,0.053427]
[1735714536566,0.02382043,93784.0,93783.0,0.053427]
[1735714551678,0.02382043,93784.0,93783.0,0.414227]
[1735714555788,0.07724643,93784.0,93783.0,0.414227]
[1735714556085,0.07724643,93784.0,93783.0,0.35407621]
[1735714556582,0.19932301,93784.0,93783.0,0.35407621]
[1735714558685,0.01630132,93784.0,93783.0,0.35407621]
[1735714559991,0.06972732,93784.0,93783.0,0.35407621]
[1735714561637,0.06972732,93784.0,93783.0,0.40750321]
[1735714562599,0.06972732,93784.0,93783.0,0.053427]
[1735714562786,0.08708924,93784.0,93783.0,0.053427]
[1735714564387,0.03366324,93784.0,93783.0,0.053427]
[1735714568591,0.01736192,93784.0,93783.0,0.053427]
[1735714568898,0.3608,93793.0,93792.0,0.053422]
[1735714569200,0.47784764,93793.0,93792.0,0.03490631]
[1735714569605,0.49501079,93793.0,93792.0,0.03490631]
[1735714570093,0.49501079,93793.0,93792.0,0.03590631]
[1735714570892,0.49801079,93793.0,93792.0,0.03590631]
[1735714575192,0.55143179,93793.0,93792.0,0.03590631]
[1735714576054,0.55143179,93793.0,93792.0,0.001]
[1735714579691,0.19063179,93793.0,93792.0,0.001]
[1735714580896,0.18763179,93793.0,93792.0,0.001]
[1735714581097,0.053423,93789.0,93788.0,0.053424]
[1735714583114,0.053424,93788.0,93784.0,0.3608]
[1735714584004,0.053425,93787.0,93784.0,0.3608]
[1735714588435,0.01716315,93793.0,93784.0,0.3608]
[1735714588609,0.053425,93786.0,93784.0,0.3608]
[1735714589810,0.053426,93785.0,93784.0,0.3608]
[1735714593109,0.07086535,93785.0,93784.0,0.3608]
[1735714594215,0.3608,93798.0,93784.0,0.3608]
[1735714594410,0.05342,93795.0,93792.0,0.053421]
[1735714594712,0.3608,93798.0,93792.0,0.053421]
[1735714594713,0.053421,93794.0,93792.0,0.053421]
[1735714595210,0.053421,93794.0,93784.0,0.3608]
[1735714595410,0.053421,93794.0,93791.0,0.053422]
[1735714595614,0.053421,93794.0,93784.0,0.37824899]
[1735714595816,0.053421,93794.0,93793.0,0.053421]
[1735714597624,0.37872599,93798.0,93784.0,0.37824899]
[1735714597878,0.37872599,93798.0,93795.0,0.05342]
[1735714598827,0.43214399,93798.0,93795.0,0.05342]
[1735714599420,0.43214399,93798.0,93795.0,0.05442]
[1735714599615,0.01792599,93798.0,93797.0,0.053419]
[1735714599813,0.1,93800.0,93797.0,0.053419]
[1735714600320,0.002,93798.0,93797.0,0.053419]
[1735714601214,0.053418,93799.0,93797.0,0.053419]
[1735714601720,0.053418,93799.0,93797.0,0.054419]
[1735714602422,0.053418,93798.0,93797.0,0.054419]
[1735714602821,0.056418,93798.0,93797.0,0.054419]
[1735714603021,0.056418,93798.0,93797.0,0.001]
[1735714628044,0.056418,93798.0,93797.0,0.0644]
[1735714633751,0.08069073,93804.0,93803.0,0.053415]
[1735714633985,0.053415,93804.0,93803.0,0.414215]
[1735714634950,0.004,93804.0,93803.0,0.414215]
[1735714635538,0.004,93804.0,93803.0,0.415215]
[1735714650455,0.004,93804.0,93803.0,0.3618]
[1735714650756,0.057415,93804.0,93803.0,0.3618]
[1735714659358,0.004,93804.0,93803.0,0.415215]
[1735714660057,0.004,93804.0,93803.0,0.414215]
[1735714660653,0.053412,93809.0,93805.0,0.053414]
[1735714662272,0.054412,93809.0,93805.0,0.053414]
[1735714662460,0.054412,93809.0,93806.0,0.053414]
[1735714663850,0.055412,93809.0,93806.0,0.053414]
[1735714666365,0.055412,93809.0,93803.0,0.3608]
[1735714666366,0.002,93809.0,93803.0,0.3608]
[1735714666558,0.053414,93805.0,93803.0,0.3608]
[1735714667359,0.053414,93805.0,93802.0,0.053416]
[1735714667761,0.054414,93805.0,93802.0,0.053416]
[1735714668784,0.054414,93805.0,93800.0,0.3608]
[1735714669067,0.054414,93805.0,93803.0,0.053415]
[1735714669964,0.053414,93805.0,93803.0,0.053415]
[1735714671067,0.054414,93805.0,93803.0,0.053415]
[1735714673370,0.001,93805.0,93804.0,0.053415]
[1735714674581,0.001,93805.0,93800.0,0.3608]
[1735714674582,0.001,93805.0,93801.0,0.053417]
[1735714674764,0.001,93805.0,93804.0,0.053415]
[1735714676763,0.053412,93809.0,93800.0,0.3608]
[1735714677068,0.053412,93809.0,93805.0,0.053414]
[1735714677682,0.053412,93809.0,93806.0,0.3608]
[1735714680076,0.054412,93809.0,93806.0,0.3608]
[1735714680469,0.054412,93809.0,93807.0,0.053413]
[1735714689224,0.053413,93808.0,93806.0,0.3608]
[1735714689573,0.086213,93808.0,93806.0,0.3608]
[1735714690273,0.087213,93808.0,93806.0,0.3608]
[1735714692794,0.31929953,93820.0,93806.0,0.3608]
[1735714692987,0.34069246,93820.0,93806.0,0.3608]
[1735714693289,0.11427402,93818.0,93806.0,0.3608]
[1735714693486,0.11427402,93819.0,93806.0,0.3608]
[1735714693790,0.34069246,93820.0,93806.0,0.3608]
[1735714694086,0.053413,93808.0,93806.0,0.3608]
[1735714694284,0.053413,93808.0,93804.0,0.3608]
[1735714696883,0.054413,93808.0,93804.0,0.3608]
[1735714698303,0.053414,93806.0,93804.0,0.3608]
[1735714698709,0.02257109,93808.0,93804.0,0.3608]
[1735714698710,0.17216111,93805.0,93804.0,0.3608]
[1735714698890,0.20306111,93805.0,93804.0,0.3608]
[1735714699095,0.084314,93805.0,93804.0,0.3608]
[1735714699286,0.20590794,93805.0,93804.0,0.3608]
[1735714700891,0.15349394,93805.0,93793.0,0.0006]
[1735714701084,0.053423,93790.0,93785.0,0.053425]
[1735714701288,0.3608,93794.0,93785.0,0.053425]
[1735714701484,0.053425,93787.0,93785.0,0.053425]
[1735714701852,0.053425,93786.0,93785.0,0.053425]
[1735714702704,0.053425,93786.0,93785.0,0.058425]
[1735714703202,0.053425,93786.0,93785.0,0.053425]
[1735714703396,0.053425,93786.0,93785.0,0.058425]
[1735714703893,0.053425,93786.0,93785.0,0.061425]
[1735714706788,0.053425,93786.0,93785.0,0.422225]
[1735714708409,0.053423,93791.0,93785.0,0.3688]
[1735714708612,0.053423,93791.0,93790.0,0.053423]
[1735714708900,0.16916767,93791.0,93790.0,0.053423]
[1735714709505,0.16916767,93791.0,93790.0,0.414223]
[1735714709907,0.16916767,93791.0,93790.0,0.417223]
[1735714710612,0.16916767,93791.0,93790.0,0.419223]
[1735714715007,0.11574467,93791.0,93790.0,0.419223]
[1735714715308,0.11631262,93793.0,93790.0,0.3658]
[1735714715605,0.11631262,93793.0,93792.0,0.053422]
[1735714716010,0.16973262,93795.0,93794.0,0.053421]
[1735714716302,0.05342,93795.0,93794.0,0.053421]
[1735714716607,0.17539949,93795.0,93794.0,0.053421]
[1735714717207,0.17539949,93795.0,93794.0,0.055421]
[1735714718703,0.12197949,93795.0,93794.0,0.055421]
[1735714720508,0.02092204,93796.0,93795.0,0.05342]
[1735714720807,0.3608,93802.0,93794.0,0.055421]
[1735714720909,0.053415,93804.0,93801.0,0.053416]
[1735714721106,0.053415,93804.0,93798.0,0.3608]
[1735714721301,0.16508317,93804.0,93802.0,0.053416]
[1735714724213,0.11166817,93804.0,93803.0,0.053415]
[1735714729216,0.11166817,93804.0,93803.0,0.03018921]
[1735714730915,0.16508317,93804.0,93803.0,0.03018921]
[1735714733011,0.16508317,93804.0,93798.0,0.3608]
[1735714733012,0.16508317,93804.0,93798.0,0.414218]
[1735714734015,0.053416,93803.0,93798.0,0.414218]
[1735714734223,0.11166817,93804.0,93798.0,0.414218]
[1735714734406,0.02151918,93805.0,93798.0,0.414218]
[1735714734407,0.1748047,93802.0,93798.0,0.414218]
[1735714734610,0.053416,93802.0,93798.0,0.414218]
[1735714735109,0.1213887,93801.0,93798.0,0.414218]
[1735714736419,0.1213887,93801.0,93799.0,0.053417]
[1735714737017,0.1748057,93801.0,93799.0,0.053417]
[1735714737315,0.053417,93801.0,93799.0,0.053417]
[1735714737819,0.11770083,93800.0,93799.0,0.053417]
[1735714738622,0.17111783,93800.0,93799.0,0.053417]
[1735714738865,0.053417,93800.0,93799.0,0.053417]
[1735714739024,0.053417,93800.0,93799.0,0.084517]
[1735714742028,0.053417,93800.0,93799.0,0.02437695]
[1735714742923,0.053417,93800.0,93799.0,0.07779395]
[1735714743115,0.08603817,93800.0,93799.0,0.07779395]
[1735714743518,0.03262117,93800.0,93799.0,0.07779395]
[1735714743720,0.11495571,93815.0,93814.0,0.053409]
[1735714743930,0.11495571,93815.0,93814.0,0.414209]
[1735714744626,0.11495571,93815.0,93814.0,0.775009]
[1735714745025,0.053404,93823.0,93822.0,0.053405]
[1735714745238,0.053404,93823.0,93822.0,0.414205]
[1735714747031,0.03278823,93825.0,93824.0,0.053403]
[1735714747308,0.03278823,93825.0,93822.0,0.3608]
[1735714747309,0.053401,93829.0,93822.0,0.3608]
[1735714747525,0.12363059,93828.0,93825.0,0.053403]
[1735714749830,0.12663059,93828.0,93825.0,0.053403]
[1735714750625,0.12663059,93828.0,93825.0,0.054403]
[1735714751926,0.12663059,93828.0,93825.0,0.001]
[1735714752116,0.12663059,93828.0,93827.0,0.053402]
[1735714752322,0.12663059,93828.0,93827.0,0.03094033]
[1735714753931,0.12663059,93828.0,93827.0,0.03194033]
[1735714761535,0.18003159,93828.0,93827.0,0.03194033]
[1735714761839,0.18003159,93828.0,93827.0,0.001]
[1735714771147,0.02880593,93828.0,93827.0,0.001]
[1735714771444,0.14888118,93828.0,93827.0,0.001]
[1735714807171,0.053409,93814.0,93808.0,0.053412]
[1735714807472,0.172928,93813.0,93808.0,0.053412]
[1735714807867,0.05341,93813.0,93808.0,0.053412]
[1735714808065,0.3608,93819.0,93804.0,0.3608]
[1735714808270,0.053413,93808.0,93804.0,0.414215]
[1735714808864,0.3608,93819.0,93804.0,0.414215]
[1735714809168,0.053414,93806.0,93804.0,0.414215]
[1735714809364,0.053414,93805.0,93804.0,0.3608]
[1735714811475,0.055414,93805.0,93804.0,0.3608]
[1735714814364,0.055414,93805.0,93804.0,0.414215]
[1735714822983,0.002,93805.0,93804.0,0.414215]
[1735714830477,0.001,93805.0,93804.0,0.3608]
[1735714830676,0.001,93805.0,93804.0,0.414215]
[1735714831583,0.024699,93807.0,93804.0,0.414215]
[1735714831885,0.053411,93810.0,93809.0,0.053412]
[1735714834383,0.054411,93810.0,93809.0,0.053412]
[1735714834787,0.053411,93810.0,93809.0,0.053412]
[1735714834996,0.02622582,93810.0,93809.0,0.053412]
[1735714842495,0.001,93810.0,93809.0,0.053412]
[1735714843890,0.02536546,93811.0,93808.0,0.3608]
[1735714844092,0.001,93810.0,93809.0,0.053412]
[1735714844593,0.001,93810.0,93808.0,0.3608]
[1735714844793,0.001,93810.0,93809.0,0.053412]
[1735714847198,0.17000732,93818.0,93817.0,0.053407]
[1735714849637,0.17100732,93818.0,93817.0,0.053407]
[1735714854999,0.16349732,93818.0,93817.0,0.053407]
[1735714859904,0.11009032,93818.0,93811.0,0.3608]
[1735714860104,0.053408,93816.0,93812.0,0.05341]
[1735714860674,0.11232678,93815.0,93811.0,0.3608]
[1735714860702,0.001,93818.0,93811.0,0.3608]
[1735714861016,0.001,93818.0,93817.0,0.053407]
[1735714861802,0.02554461,93819.0,93817.0,0.053407]
[1735714862009,0.053405,93821.0,93817.0,0.053407]
[1735714862714,0.053406,93820.0,93817.0,0.053407]
[1735714863006,0.001,93818.0,93817.0,0.053407]
[1735714863699,0.053406,93819.0,93817.0,0.053407]
[1735714863804,0.05341,93813.0,93812.0,0.05341]
[1735714865296,0.05341,93812.0,93811.0,0.3608]
[1735714866719,0.05441,93812.0,93811.0,0.3608]
[1735714866903,0.053416,93801.0,93800.0,0.36136]
[1735714867172,0.053416,93801.0,93800.0,0.3608]
[1735714869104,0.053416,93801.0,93800.0,0.3628]
[1735714869517,0.053416,93801.0,93800.0,0.3648]
[1735714870506,0.07303854,93801.0,93800.0,0.3628]
[1735714870707,0.07303854,93801.0,93800.0,0.3648]
[1735714875413,0.06559854,93801.0,93800.0,0.3648]
[1735714877516,0.18156326,93801.0,93800.0,0.3648]
[1735714883033,0.18156326,93801.0,93800.0,0.004]
[1735714883641,0.18156326,93801.0,93800.0,0.0023042]
[1735714884336,0.18156326,93801.0,93800.0,0.003]
[1735714890740,0.63558726,93801.0,93781.0,0.00159953]
[1735714891045,0.053427,93783.0,93781.0,0.00159953]
[1735714891273,0.3608,93795.0,93781.0,0.00159953]
[1735714891274,0.053427,93782.0,93781.0,0.00159953]
[1735714892047,0.053427,93782.0,93781.0,0.01659953]
[1735714892648,0.053427,93782.0,93781.0,0.01459953]
[1735714892848,0.053427,93782.0,93781.0,0.01259953]
[1735714894447,0.053427,93782.0,93781.0,0.00559953]
[1735714894643,0.053427,93782.0,93781.0,0.01159953]
[1735714895442,0.16548413,93782.0,93781.0,0.01159953]
[1735714898645,0.18564425,93782.0,93781.0,0.01159953]
[1735714911465,0.18564425,93782.0,93781.0,0.00659626]
[1735714913555,0.18564425,93782.0,93781.0,0.006]
[1735714913757,0.18564425,93782.0,93781.0,0.009]
[1735714915469,0.18564425,93782.0,93781.0,0.006]
[1735714915801,0.053428,93780.0,93779.0,0.3608]
[1735714916165,0.67086641,93780.0,93779.0,0.3608]
[1735714916473,0.48019109,93780.0,93779.0,0.3608]
[1735714917167,0.53461909,93780.0,93779.0,0.3608]
[1735714917958,0.53861909,93780.0,93779.0,0.3608]
[1735714919370,0.48519109,93780.0,93772.0,0.3608]
[1735714919578,0.053432,93773.0,93772.0,0.3608]
[1735714919962,0.053437,93766.0,93763.0,0.053438]
[1735714920665,0.36604268,93780.0,93763.0,0.053438]
[1735714920666,0.053437,93765.0,93763.0,0.053438]
[1735714921471,0.053437,93765.0,93764.0,0.3608]
[1735714922768,0.053437,93764.0,93763.0,0.059438]
[1735714922969,0.051437,93764.0,93763.0,0.057438]
[1735714923567,0.051437,93764.0,93763.0,0.418238]
[1735714923772,0.29169382,93780.0,93764.0,0.003]
[1735714924085,0.053432,93773.0,93772.0,0.3608]
[1735714924282,0.053432,93773.0,93772.0,0.30064233]
[1735714924572,0.16713396,93773.0,93772.0,0.30064233]
[1735714926966,0.16813396,93773.0,93772.0,0.30064233]
[1735714927664,0.11470196,93773.0,93770.0,0.3608]
[1735714928875,0.053433,93771.0,93770.0,0.3618]
[1735714929167,0.17142284,93771.0,93770.0,0.3618]
[1735714936387,0.17116284,93771.0,93770.0,0.001]
[1735714956883,0.17090284,93771.0,93770.0,0.001]
[1735714983301,0.17090284,93771.0,93770.0,0.0007249]
[1735715003802,0.17090284,93771.0,93761.0,0.0316]
[1735715003803,0.053438,93762.0,93761.0,0.0316]
[1735715004204,0.17305983,93762.0,93761.0,0.0316]
[1735715005114,0.17305983,93762.0,93761.0,0.0386]
[1735715007926,0.18745293,93762.0,93761.0,0.0386]
[1735715019019,0.18745293,93762.0,93761.0,0.02159368]
[1735715019713,0.18745293,93762.0,93761.0,0.007]
[1735715020420,0.18845293,93762.0,93761.0,0.005]
[1735715021419,0.053439,93761.0,93760.0,0.00159983]
[1735715021919,0.1698346,93761.0,93760.0,0.00159983]
[1735715022626,0.1728346,93761.0,93760.0,0.00159983]
[1735715035547,0.1728346,93761.0,93754.0,0.064]
[1735715035548,0.053442,93755.0,93754.0,0.064]
[1735715035949,0.16812021,93755.0,93754.0,0.064]
[1735715036839,0.16812021,93755.0,93754.0,0.065]
[1735715039350,0.16812021,93755.0,93754.0,0.066]
[1735715046553,0.053442,93755.0,93754.0,0.066]
[1735715064755,0.053442,93755.0,93754.0,0.0328]
[1735715067061,0.032,93765.0,93754.0,0.0328]
[1735715067463,0.11530385,93763.0,93754.0,0.0328]
[1735715067860,0.032,93765.0,93754.0,0.0328]
[1735715068168,0.053442,93755.0,93754.0,0.0318]
[1735715068365,0.053442,93755.0,93754.0,0.0328]
[1735715069451,0.053442,93755.0,93754.0,0.0318]
[1735715069657,0.053442,93755.0,93754.0,0.0328]
[1735715070759,0.053442,93755.0,93754.0,0.002]
[1735715072072,0.053442,93755.0,93754.0,0.3628]
[1735715072382,0.053442,93755.0,93754.0,0.002]
[1735715072577,0.053442,93755.0,93754.0,0.3628]
[1735715072972,0.053442,93755.0,93754.0,0.002]
[1735715075462,0.06652436,93755.0,93754.0,0.002]
[1735715077370,0.06652436,93755.0,93754.0,0.3628]
[1735715079570,0.06652436,93755.0,93754.0,0.002]
[1735715079814,0.06652436,93755.0,93754.0,0.3628]
[1735715081474,0.06652436,93755.0,93754.0,0.002]
[1735715081696,0.06652436,93755.0,93754.0,0.3628]
[1735715081881,0.06652436,93755.0,93754.0,0.002]
[1735715083776,0.06652436,93755.0,93754.0,0.00114799]
[1735715087588,0.06752436,93755.0,93754.0,0.001]
[1735715087897,0.06752436,93755.0,93744.0,0.053449]
[1735715087898,0.053449,93745.0,93744.0,0.053449]
[1735715089590,0.053449,93745.0,93744.0,0.054449]
[1735715090185,0.053449,93745.0,93744.0,0.055449]
[1735715091384,0.053449,93745.0,93744.0,0.056449]
[1735715092123,0.053449,93745.0,93744.0,0.055449]
[1735715092588,0.0663229,93745.0,93744.0,0.055449]
[1735715093086,0.0663229,93745.0,93744.0,0.416249]
[1735715095184,0.0128739,93745.0,93744.0,0.416249]
[1735715095394,0.053445,93750.0,93744.0,0.3628]
[1735715095583,0.053445,93750.0,93749.0,0.053446]
[1735715095892,0.053445,93750.0,93749.0,0.02972011]
[1735715098286,0.054445,93750.0,93749.0,0.02972011]
[1735715098485,0.06735576,93750.0,93749.0,0.02972011]
[1735715103381,0.06735576,93750.0,93749.0,0.06172011]
[1735715105093,0.001,93750.0,93749.0,0.06172011]
[1735715109311,0.053443,93755.0,93754.0,0.053443]
[1735715109994,0.06980231,93755.0,93754.0,0.053443]
[1735715110209,0.06980231,93755.0,93749.0,0.032]
[1735715110210,0.11501253,93766.0,93750.0,0.3608]
[1735715110401,0.053434,93771.0,93761.0,0.3608]
[1735715110595,0.053434,93771.0,93762.0,0.02517015]
[1735715111489,0.053434,93771.0,93762.0,0.05577015]
[1735715111893,0.053434,93771.0,93769.0,0.053434]
[1735715112704,0.007,93771.0,93769.0,0.053434]
[1735715113398,0.008,93771.0,93769.0,0.054434]
[1735715123407,0.006,93771.0,93769.0,0.053434]
[1735715125071,0.006,93771.0,93769.0,0.054434]
[1735715125541,0.004,93771.0,93769.0,0.054434]
[1735715125708,0.007,93771.0,93769.0,0.054434]
[1735715130997,0.007,93771.0,93770.0,0.053434]
[1735715132112,0.004,93771.0,93770.0,0.054434]
[1735715132299,0.007,93771.0,93770.0,0.054434]
[1735715132904,0.004,93771.0,93770.0,0.054434]
[1735715133109,0.007,93771.0,93770.0,0.054434]
[1735715133501,0.18389244,93771.0,93770.0,0.054434]
[1735715142317,0.18389244,93771.0,93770.0,0.03962857]
[1735715144246,0.18389244,93771.0,93770.0,0.001]
[1735715174660,0.18289244,93771.0,93770.0,0.001]
[1735715175055,0.053434,93770.0,93764.0,0.053437]
[1735715175449,0.11401555,93769.0,93764.0,0.053437]
[1735715175846,0.16745055,93769.0,93764.0,0.053437]
[1735715176252,0.053435,93769.0,93764.0,0.053437]
[1735715176559,0.11430567,93768.0,93764.0,0.053437]
[1735715176751,0.16774067,93768.0,93764.0,0.053437]
[1735715177062,0.053435,93768.0,93764.0,0.053437]
[1735715177453,0.11632847,93767.0,93764.0,0.053437]
[1735715177967,0.16976447,93767.0,93764.0,0.053437]
[1735715180268,0.17376447,93767.0,93764.0,0.053437]
[1735715180457,0.17576447,93767.0,93764.0,0.053437]
[1735715180862,0.053436,93766.0,93761.0,0.095]
[1735715181063,0.053436,93766.0,93765.0,0.053437]
[1735715181363,0.17167618,93766.0,93765.0,0.053437]
[1735715183270,0.17667618,93766.0,93765.0,0.053437]
[1735715184061,0.17767618,93766.0,93765.0,0.053437]
[1735715184862,0.17367618,93766.0,93765.0,0.053437]
[1735715186269,0.02308738,93766.0,93765.0,0.053437]
[1735715186569,0.02708738,93766.0,93765.0,0.053437]
[1735715186963,0.08052338,93766.0,93765.0,0.053437]
[1735715187767,0.053438,93762.0,93761.0,0.053438]
[1735715190064,0.057438,93762.0,93761.0,0.053438]
[1735715194374,0.07467248,93762.0,93761.0,0.053438]
[1735715217199,0.02123448,93762.0,93761.0,0.053438]
[1735715254521,0.053444,93756.0,93755.0,0.053442]
[1735715254717,0.053446,93751.0,93750.0,0.053446]
[1735715255104,0.17297754,93751.0,93750.0,0.053446]
[1735715257305,0.17297754,93751.0,93750.0,0.054446]
[1735715257508,0.17297754,93751.0,93750.0,0.056446]
[1735715263722,0.18797926,93751.0,93750.0,0.003]
[1735715266528,0.13453326,93751.0,93748.0,0.3608]
[1735715266727,0.13453326,93751.0,93738.0,0.29078598]
[1735715266728,0.05345,93743.0,93738.0,0.29078598]
[1735715267119,0.17194501,93743.0,93738.0,0.29078598]
[1735715267326,0.053452,93739.0,93738.0,0.053452]
[1735715267818,0.17194701,93739.0,93738.0,0.053452]
[1735715268019,0.16894701,93739.0,93738.0,0.053452]
[1735715269935,0.16894701,93739.0,93738.0,0.055452]
[1735715270129,0.16894701,93739.0,93738.0,0.059452]
[1735715272592,0.18341253,93739.0,93738.0,0.059452]
[1735715277130,0.18341253,93739.0,93738.0,0.420252]
[1735715281136,0.18341253,93739.0,93738.0,0.059452]
[1735715281732,0.13296053,93739.0,93723.0,0.0332]
[1735715281941,0.053456,93733.0,93732.0,0.053456]
[1735715282431,0.17157045,93733.0,93732.0,0.053456]
[1735715283287,0.17157045,93733.0,93732.0,0.058456]
[1735715283833,0.17157045,93733.0,93732.0,0.060456]
[1735715284639,0.17157045,93733.0,93732.0,0.010456]
[1735715284841,0.17157045,93733.0,93732.0,0.007]
[1735715285047,0.17157045,93733.0,93732.0,0.060456]
[1735715293246,0.17157045,93733.0,93732.0,0.03446644]
[1735715295749,0.11811445,93733.0,93732.0,0.03446644]
[1735715295935,0.11811445,93733.0,93732.0,0.09696644]
[1735715296137,0.11282772,93737.0,93736.0,0.053454]
[1735715296340,0.053453,93738.0,93732.0,0.0625]
[1735715296542,0.053453,93738.0,93737.0,0.053453]
[1735715296945,0.16628072,93738.0,93737.0,0.053453]
[1735715298045,0.16628072,93738.0,93737.0,0.054453]
[1735715298803,0.16628072,93738.0,93737.0,0.055453]
[1735715307141,0.16628072,93738.0,93737.0,0.002]
[1735715318356,0.053453,93738.0,93737.0,0.055454]
[1735715320481,0.053453,93738.0,93737.0,0.053454]
[1735715320662,0.053453,93738.0,93737.0,0.03137355]
[1735715320859,0.01446552,93739.0,93731.0,0.3608]
[1735715321060,0.053455,93735.0,93732.0,0.053456]
[1735715322259,0.053455,93734.0,93732.0,0.053456]
[1735715323767,0.053456,93733.0,93732.0,0.056456]
[1735715324548,0.053456,93733.0,93732.0,0.058456]
[1735715326060,0.053456,93733.0,93732.0,0.056456]
[1735715326265,0.053456,93733.0,93732.0,0.058456]
[1735715327865,0.06702001,93733.0,93732.0,0.058456]
[1735715329966,0.06702001,93733.0,93732.0,0.005]
[1735715330551,0.053457,93732.0,93731.0,0.30561734]
[1735715332168,0.053457,93732.0,93731.0,0.30861734]
[1735715332797,0.052457,93732.0,93731.0,0.30861734]
[1735715334265,0.052457,93732.0,93731.0,0.30961734]
[1735715340578,0.3608,93739.0,93731.0,0.004]
[1735715340971,0.053457,93732.0,93731.0,0.004]